Cogmind - Beta 10.2 --- EXPLORER MODE // 2021.05.25 @ 23:12:41 // Winter2019/RPGLIKE Player: H_ Result: Destroyed by H-66 Slayer with Gauss Rifle Performance ------------- Evolutions (5) 2500 Regions Visited (16) 3200 Robots Destroyed (199) 995 Value Destroyed (7653) 7653 Prototype IDs (70) 1400 Alien Tech Used (0) 0 Bonus (2725) 2725 TOTAL SCORE: 18473 Bonus ------- High Alert Combat Kills 233 Follower Combat Kills 1130 Entered Garrisons 400 Used RIF Installer 1000 Aligned with FarCom 300 Friendly Fire -338 Cogmind --------- Core Integrity 0/900 Matter 94/300 Energy 90/100 System Corruption 1% Temperature Cool (0) Movement Core (50) Location -5/Factory Parts ------- > --- POWER (2) -------- (None) > --- PROPULSION (4) --- (None) > --- UTILITY (10) ----- Modified TNC Hacking Suite System Shield System Shield Relay Coupler [NC] (52) > --- WEAPON (4) ------- Particle Gun > --- INVENTORY (5) ---- (None) Peak State ------------ > --- POWER ------------ Light Angular Momentum Engine Light Angular Momentum Engine > --- PROPULSION ------- Improved Cesium-ion Thruster Improved Cesium-ion Thruster Improved Cesium-ion Thruster Improved Cesium-ion Thruster > --- UTILITY ---------- Modified TNC Damper Plating Hacking Suite Hacking Suite System Shield System Shield Relay Coupler [NC] > --- WEAPON ----------- Tesla Rifle Cooled Pulse Rifle Heavy Rocket Launcher Chainsword > --- INVENTORY -------- Relay Coupler [NC] Relay Coupler [Grunt] Relay Coupler [Sentry] Mass Driver Remote Datajack [Rating: 87] Favorites ----------- Power Light Angular Momentum Engine Engine Light Angular Momentum Engine Power Core Light Nuclear Core Propulsion Improved Cesium-ion Thruster Leg Aluminum Leg Flight Unit Improved Cesium-ion Thruster Utility Hacking Suite Device Transmission Jammer Processor Modified TNC Hackware Hacking Suite Protection Insulated Plating Weapon Chainsword Energy Gun Tesla Rifle Energy Cannon EM Pulse Cannon Ballistic Gun Gauss Rifle Ballistic Cannon Magnetic Acceleration Cannon Launcher Mini Grenade Launcher Special Weapon Remote Datajack Slashing Weapon Chainsword Piercing Weapon Makeshift Spear Build | -11 -10 -10 -9 -9 -9 -8 -8 -8 -8 -8 -7 -7 -7 -7 -7 -5 ------- Run | Scr Mat Min Mat Min Exi Min Mat Gar Mat Gar Fac Was Fac Sto Rec Fac Slots Evolved 16 | 2 1 . 5 . 2 . 1 2 . . 2 . . 1 . . Power 1 | . . . 1 . . . . . . . . . . . . . Propulsion 3 | . 1 . 2 . . . . . . . . . . . . . Utility 9 | 1 . . 2 . 1 . 1 2 . . 1 . . 1 . . Weapon 3 | 1 . . . . 1 . . . . . 1 . . . . . Parts Attached 167 | 5 6 . 7 . 5 1 23 14 15 1 47 10 14 17 . 2 Power 17 | 2 . . 1 . . . 2 . 2 . 7 . . 2 . 1 Engine 9 | 2 . . 1 . . . . . 2 . 4 . . . . . Core 8 | . . . . . . . 2 . . . 3 . . 2 . 1 Reactor . | . . . . . . . . . . . . . . . . . Propulsion 22 | . 3 . 2 . . . 5 . 2 . 7 . 2 1 . . Treads . | . . . . . . . . . . . . . . . . . Leg 2 | . . . . . . . . . . . 1 . 1 . . . Wheel . | . . . . . . . . . . . . . . . . . Hover . | . . . . . . . . . . . . . . . . . Flight 20 | . 3 . 2 . . . 5 . 2 . 6 . 1 1 . . Utility 70 | 1 2 . 1 . 3 1 7 7 6 1 22 5 8 6 . . Device 51 | 1 2 . . . 2 1 2 6 6 . 16 4 6 5 . . Storage . | . . . . . . . . . . . . . . . . . Processor 6 | . . . 1 . 1 . 2 . . . . . 2 . . . Hackware 9 | . . . . . . . 2 1 . 1 5 . . . . . Protection 4 | . . . . . . . 1 . . . 1 1 . 1 . . Artifact . | . . . . . . . . . . . . . . . . . Weapon 58 | 2 1 . 3 . 2 . 9 7 5 . 11 5 4 8 . 1 Energy Gun 19 | 1 . . . . . . 3 3 2 . 4 1 1 3 . 1 Energy Cannon 3 | . . . 2 . . . . . . . . . . 1 . . Ballistic Gun 3 | . . . . . . . 1 1 . . . . 1 . . . Ballistic Cannon 7 | . . . . . . . . 1 1 . 2 1 . 2 . . Launcher 6 | . . . . . 1 . . . 1 . 1 2 . 1 . . Special Weapon 7 | 1 1 . 1 . . . . . . . 2 . 1 1 . . Impact Weapon . | . . . . . . . . . . . . . . . . . Slashing Weapon 7 | . . . . . . . 1 1 1 . 2 1 1 . . . Piercing Weapon 6 | . . . . . 1 . 4 1 . . . . . . . . Special Melee Weapon . | . . . . . . . . . . . . . . . . . Unidentified Prototypes 5 | . . . 1 . . . . . 1 . 2 . . . . 1 Parts Lost 3 | . . . . . . . . . . . 1 . . 1 . 1 Power . | . . . . . . . . . . . . . . . . . Propulsion . | . . . . . . . . . . . . . . . . . Utility 1 | . . . . . . . . . . . 1 . . . . . Weapon 2 | . . . . . . . . . . . . . . 1 . 1 Highest Loss Streak 1 | . . . . . . . . . . . 1 . . 1 . 1 Average Slot Usage (%) 95 | . 94 100 92 91 94 80 85 98 99 99 98 100 99 98 95 32 Engine 9 | . 14 14 15 16 15 14 7 . 4 11 8 10 10 4 . . Core 2 | . . . . . . . 5 11 6 . 1 . . 5 10 1 Flight 23 | . 18 28 32 33 31 28 26 23 22 23 21 21 20 20 20 1 Device 18 | . 29 28 18 16 15 8 6 17 23 23 16 14 14 21 20 1 Processor 5 | . . . 5 8 12 7 10 5 5 5 5 5 5 5 5 5 Hackware 14 | . . . . . . . 3 15 17 16 24 26 26 20 20 20 Energy Gun 5 | . 14 14 2 . . . 4 4 4 5 5 9 10 5 5 . Energy Cannon 1 | . . . 6 8 7 7 2 . . . . . . . . . Ballistic Cannon 1 | . . . . . . . . . 4 5 1 . . . . . Special Weapon 4 | . 14 14 9 8 7 7 . . . . 4 . 4 5 5 . Slashing Weapon 3 | . . . . . . . . 3 5 5 5 5 5 5 5 . Naked Turns . | . . . . . . . . . . . . . . . . . Heaviest Build 47 | 7 8 8 15 15 21 21 25 33 30 30 38 47 41 41 33 33 Greatest Support 42 | 13 18 18 26 26 26 26 34 34 34 34 42 42 42 42 39 39 Greatest Overweight (x) 3 | . . . . . . . . . . . . 1 3 1 . . Average Overweight (x) . | . . . . . . . . . . . . . . . . . Largest Inventory Capacity 5 | 2 2 2 2 2 3 3 3 4 4 5 5 5 5 5 5 5 Average Capacity 3 | 1 2 2 2 2 2 3 3 3 4 4 5 5 5 5 5 5 Most Carried 5 | 1 2 2 2 2 2 2 3 4 4 5 5 5 5 5 5 5 Average Carried 3 | . . 1 1 2 1 1 2 1 3 4 4 4 4 4 5 . Final Capacity 5 | 2 2 2 2 2 3 3 3 4 4 5 5 5 5 5 5 5 Final Carried 5 | . 1 2 2 2 1 2 3 3 3 4 5 5 4 5 5 . Class Distribution -------------------- 60% | Wizard-Ninja 32% | Hacker-Scout 3% | Commander-Ninja Dominant Class ---------------- Hacker-Scout | -10/Materials Hacker-Scout | -10/Mines Hacker-Scout | -9/Materials Hacker-Scout | -9/Mines Hacker-Scout | -9/Exiles Hacker-Scout | -8/Mines Hacker-Scout | -8/Materials Wizard-Ninja | -8/Garrison Wizard-Ninja | -8/Materials Wizard-Ninja | -8/Garrison Wizard-Ninja | -7/Factory Wizard-Ninja | -7/Waste Wizard-Ninja | -7/Factory Wizard-Ninja | -7/Storage Wizard-Ninja | -7/Recycling Wizard-Scout | -5/Factory Resources | -11 -10 -10 -9 -9 -9 -8 -8 -8 -8 -8 -7 -7 -7 -7 -7 -5 ----------- Run | Scr Mat Min Mat Min Exi Min Mat Gar Mat Gar Fac Was Fac Sto Rec Fac Matter Collected 2259 | 250 60 . 70 . 30 30 234 180 204 132 608 89 171 185 14 2 Remotely . | . . . . . . . . . . . . . . . . . Salvage Created 6038 | 138 112 22 464 22 . 168 479 521 988 361 985 . 648 879 89 162 Parts 424 | 14 9 5 34 4 . 6 52 45 60 38 59 . 30 46 15 7 Haulers Intercepted 7 | . . . . . . . 1 . 1 . 2 . 1 1 . 1 Recyclers Shooed 1 | 1 . . . . . . . . . . . . . . . . Parts Field Recycled . | . . . . . . . . . . . . . . . . . Retrieved Matter . | . . . . . . . . . . . . . . . . . Parts Self-Destructed . | . . . . . . . . . . . . . . . . . Prevented . | . . . . . . . . . . . . . . . . . Kills | -11 -10 -10 -9 -9 -9 -8 -8 -8 -8 -8 -7 -7 -7 -7 -7 -5 ------- Run | Scr Mat Min Mat Min Exi Min Mat Gar Mat Gar Fac Was Fac Sto Rec Fac Combat Hostiles Destroyed 155 | . 3 2 11 3 . 3 12 18 22 23 19 . 11 15 10 3 Melee 29 | . . . . . . . 4 3 6 2 5 . 1 7 1 . Guns 80 | . 3 1 2 . . . 2 12 15 17 10 . 10 5 3 . Cannons 25 | . . . 9 3 . 2 5 . 1 4 1 . . . . . AOE 13 | . . 1 . . . . 1 3 . . . . . . 5 3 Classes Destroyed 15 | 2 3 . 1 . . 1 1 1 2 . 1 . 1 . 1 1 Worker 4 | . . . . . . . . . 3 . . . . . . 1 Tunneler 4 | 3 . . . . . . . . . . . . . . . 1 Hauler 7 | . . . . . . . 1 . 1 . 2 . 1 1 . 1 Recycler 1 | 1 . . . . . . . . . . . . . . . . Operator 1 | . . . . . . . . . . . . . 1 . . . Drone 10 | . . . . . . . . . . . . . . . 10 . Watcher 25 | . 2 . 4 . . . 3 3 5 . 5 . 2 1 . . Swarmer 52 | . 2 2 6 3 . . . 7 6 17 6 . . . . 3 Grunt 42 | . 1 . 2 . . 2 2 7 7 4 5 . 6 5 . 1 Brawler 2 | . . . . . . . . 2 . . . . . . . . Duelist 1 | . . . . . . . . . 1 . . . . . . . Protector 1 | . . . . . . . . . . . . . . . . 1 Sentry 40 | . . . 3 . . . 9 2 8 1 4 . 3 10 . . Hunter 5 | . . . . . . 1 1 . . 1 1 . 1 . . . Programmer 4 | . . . . . . . . . . . 3 . 1 . . . Best Kill Streak 10 | 2 5 2 5 3 . 1 3 10 7 5 3 . 4 4 4 4 Combat Bots Only 10 | . 3 2 3 3 . 1 3 10 5 5 3 . 2 4 4 3 Max Kills in Single Turn 4 | 1 1 1 1 1 . 1 1 3 2 1 1 . 1 1 4 2 Gunslinging . | . . . . . . . . . . . . . . . . . Exploded 4 | . . 1 . . . . 1 3 . . . . . . 4 2 Melee 1 | . . . . . . . 1 1 1 1 1 . 1 1 1 . Uniques/NPCs Destroyed . | . . . . . . . . . . . . . . . . . Combat | -11 -10 -10 -9 -9 -9 -8 -8 -8 -8 -8 -7 -7 -7 -7 -7 -5 -------- Run | Scr Mat Min Mat Min Exi Min Mat Gar Mat Gar Fac Was Fac Sto Rec Fac Damage Taken 3686 | 24 77 4 174 29 . 83 88 265 337 284 800 . 151 606 11 753 Core 2967 | 18 63 3 138 26 . 63 66 190 269 225 638 . 118 456 8 686 Absorbed by Shields 293 | . . . . . . . . . . . 30 . 5 70 10 178 Redirected to Core 2065 | 18 34 3 105 8 . 63 60 173 223 181 503 . 88 406 8 192 Core Remaining (%) 91 | 97 . 90 . . . 97 . . . 100 . . . . 75 . Volleys Fired 409 | 6 22 2 28 3 . 12 18 30 50 64 62 3 27 42 20 20 Largest 1 | 1 1 1 1 1 . 1 1 1 1 1 1 1 1 1 1 1 Hottest 100 | 40 100 40 100 100 . 63 63 80 80 80 80 20 65 65 65 65 Shots Fired 408 | 6 22 2 28 3 . 12 18 30 50 64 62 3 27 41 20 20 Gun 273 | 6 19 2 5 . . . 8 30 41 38 42 3 23 38 16 2 Cannon 83 | . . . 21 1 . 12 10 . 9 26 4 . . . . . Launcher 20 | . . . . . . . . . . . . . . . 2 18 Special 32 | . 3 . 2 2 . . . . . . 16 . 4 3 2 . Kinetic 50 | . . . . . . . 1 10 9 26 4 . . . . . Thermal 126 | . 3 . 2 2 . . . 11 41 38 13 3 8 3 . 2 Explosive 20 | . . . . . . . . . . . . . . . 2 18 Electromagnetic 187 | 6 19 2 26 1 . 12 17 9 . . 29 . 15 35 16 . Robot Hit Streak 81 | 6 9 3 25 26 . 3 8 32 32 26 70 31 58 81 17 . Robot Miss Streak 4 | . 4 . 1 1 . 1 1 1 2 2 1 . . 2 2 . Penetration Max . | . . . . . . . . . . . . . . . . . Secondary Targets . | . . . . . . . . . . . . . . . . . Shots Hit Robots 451 | 6 13 2 25 2 . 9 28 41 73 51 85 3 38 63 12 . Core Hits 278 | 5 6 2 14 3 . 5 19 31 50 35 37 . 17 25 9 20 Critical Hits 10 | . . . . . . . 1 2 3 . 2 . 1 1 . . Critical Kills 8 | . . . . . . . 1 1 3 . 1 . 1 1 . . Critical Parts Destroyed 2 | . . . . . . . . 1 . . 1 . . . . . Melee Attacks 209 | . . . . . . . 25 33 45 27 33 . 11 34 1 . Impact . | . . . . . . . . . . . . . . . . . Slashing 172 | . . . . . . . . 21 45 27 33 . 11 34 1 . Piercing 37 | . . . . . . . 25 12 . . . . . . . . Sneak Attacks 17 | . . . . . . . 2 3 2 1 4 . 2 3 . . Combat Hostiles 5 | . . . . . . . . 1 . 1 . . . 3 . . Follow-up Attacks . | . . . . . . . . . . . . . . . . . Damage Inflicted 16469 | 113 238 50 731 75 . 311 1125 1531 2621 1458 2627 59 1432 2327 669 1102 Guns 6333 | 83 197 25 62 . . . 183 586 1089 855 1130 59 748 910 406 . Cannons 1902 | . . . 644 23 . 242 291 . 225 357 120 . . . . . Explosions 1804 | 30 41 25 25 . . 69 97 147 . . . . . 58 224 1088 Melee 6364 | . . . . . . . 554 798 1307 246 1377 . 684 1359 39 . Ramming 14 | . . . . . . . . . . . . . . . . 14 Kinetic 925 | . . . . . . . 20 203 225 357 120 . . . . . Thermal 4202 | 30 41 25 25 52 . 69 97 442 1089 855 462 59 370 141 32 413 Explosive 867 | . . . . . . . . . . . . . . . 192 675 Electromagnetic 4097 | 83 197 25 706 23 . 242 454 88 . . 668 . 378 827 406 . Impact . | . . . . . . . . . . . . . . . . . Slashing 5618 | . . . . . . . . 606 1307 246 1377 . 684 1359 39 . Piercing 746 | . . . . . . . 554 192 . . . . . . . . Highest Corruption 2 | . . . . . . . . . . . 2 1 1 2 1 1 Average Corruption 1 | . . . . . . . . . . . 1 1 1 1 1 1 Corruption Purged 7 | . . . . . . . . . . . 4 . . 2 1 . Effects 16 | . . . . . . . . . . . 7 1 4 3 . 1 Message Errors 5 | . . . . . . . . . . . 3 1 . 1 . . Energy Discharges 2 | . . . . . . . . . . . . . 1 . . 1 Data Loss (minor) 7 | . . . . . . . . . . . 4 . 2 1 . . Targeting Errors 2 | . . . . . . . . . . . . . 1 1 . . Overload Shots 15 | . . . . . . . . . . . 3 . 8 4 . . Effects 1 | . . . . . . . . . . . . . . 1 . . Meltdown 1 | . . . . . . . . . . . . . . 1 . . Overflow Damage 1156 | . . . 78 . . . 109 225 96 24 155 . 268 90 . 111 Projectiles 108 | . . . 78 . . . 15 . . 15 . . . . . . Explosions 111 | . . . . . . . . . . . . . . . . 111 Melee 937 | . . . . . . . 94 225 96 9 155 . 268 90 . . Knockbacks 7 | . . . . . . . . . . 5 2 . . . . . Impact . | . . . . . . . . . . . . . . . . . Kinetic 7 | . . . . . . . . . . 5 2 . . . . . Secondary . | . . . . . . . . . . . . . . . . . Self-Inflicted Damage 395 | 24 10 4 . . . . . 35 . . . . . . . 322 Shots 16 | 1 1 1 . . . . . 1 . . . . . . . 12 Rammed 2 | . . . . . . . . . . . . . . . . 2 Targets Rammed 2 | . . . . . . . . . . . . . . . . 2 Kicked . | . . . . . . . . . . . . . . . . . Crushed . | . . . . . . . . . . . . . . . . . Highest Temperature 299 | 6 10 8 8 . . 7 25 299 40 37 78 . 32 67 18 . Average Temperature 25 | 6 4 6 3 . . 3 12 136 13 8 21 . 12 18 7 . Received Heat Transfer 1235 | . 48 . 36 . . 54 45 144 171 81 183 . 94 303 9 67 Siege Activations . | . . . . . . . . . . . . . . . . . Robots Corrupted 8 | . . . 1 . . 1 . . . . 2 . . 3 1 . Combat Hostiles 7 | . . . . . . 1 . . . . 2 . . 3 1 . Parts Fried 38 | . 1 . 5 . . 3 1 . . . 6 . 5 10 7 . Impact Corruptions . | . . . . . . . . . . . . . . . . . Robots Melted 1 | . . . . . . . . . . . 1 . . . . . Combat Hostiles 1 | . . . . . . . . . . . 1 . . . . . Parts Melted 9 | . . . . . . . . . 3 5 1 . . . . . Heat Transferred 6823 | . 50 50 . 100 . 50 100 725 2275 1612 850 111 400 150 50 300 Parts Sabotaged . | . . . . . . . . . . . . . . . . . Parts Stolen . | . . . . . . . . . . . . . . . . . Parts Stripped . | . . . . . . . . . . . . . . . . . Power Chain Reactions 9 | 1 1 1 1 . . 1 1 1 . . . . . 1 1 . Missiles Intercepted . | . . . . . . . . . . . . . . . . . Alert | -11 -10 -10 -9 -9 -9 -8 -8 -8 -8 -8 -7 -7 -7 -7 -7 -5 ------- Run | Scr Mat Min Mat Min Exi Min Mat Gar Mat Gar Fac Was Fac Sto Rec Fac Peak Influence 1782 | 20 316 152 291 108 . 114 331 695 453 836 786 188 693 694 447 1782 Initial 1033 | . 9 86 . 38 . . 31 14 248 42 325 188 90 228 . 1033 Average 192 | 16 159 45 87 71 . 31 144 481 133 485 117 186 224 175 231 1540 Maximum Alert Level 5 | . 1 . 1 . . . 1 2 2 3 3 . 2 2 2 5 Low Security (%) 68 | 100 47 100 83 100 . 100 63 13 77 21 79 100 74 42 42 . Level 1 17 | . 52 . 16 . . . 36 20 14 8 17 . 2 55 28 . Level 2 9 | . . . . . . . . 66 7 50 . . 23 2 28 . Level 3 2 | . . . . . . . . . . 19 3 . . . . 12 Level 4 . | . . . . . . . . . . . . . . . . 26 Level 5 1 | . . . . . . . . . . . . . . . . 60 High Security . | . . . . . . . . . . . . . . . . . Max Security . | . . . . . . . . . . . . . . . . . Squads Dispatched 34 | . 2 . 2 . . . 4 . 3 . 13 . 2 6 . 2 Investigation 21 | . 2 . 2 . . . 4 . 3 . 7 . . 3 . . Extermination 9 | . . . . . . . . . . . 6 . 2 1 . . Reinforcement 4 | . . . . . . . . . . . . . . 2 . 2 Assault . | . . . . . . . . . . . . . . . . . Garrison . | . . . . . . . . . . . . . . . . . Intercept . | . . . . . . . . . . . . . . . . . Construction Impeded 1 | . . . . . . . . . . . . . . . . 1 Haulers Reinforced 2 | . . . . . . . . . . . . . . 1 . 1 Stealth | -11 -10 -10 -9 -9 -9 -8 -8 -8 -8 -8 -7 -7 -7 -7 -7 -5 --------- Run | Scr Mat Min Mat Min Exi Min Mat Gar Mat Gar Fac Was Fac Sto Rec Fac Distress Signals 9 | . 1 . 2 . . . 1 . . . . . . 5 . . Communications Jammed 72 | . . . . . . . . 16 5 . 4 . 8 34 5 . Distress Signals 61 | . . . . . . . . 16 2 . 2 . 8 33 . . Times Spotted 273 | . 15 2 22 3 . 4 23 26 28 25 36 1 20 28 16 24 Peak Tracking Total 7 | . 5 2 6 3 . 2 4 6 4 4 3 1 5 4 4 7 Tactical Retreats 17 | . 4 . 2 . . 1 1 3 1 2 . . 1 . . 2 Traps | -11 -10 -10 -9 -9 -9 -8 -8 -8 -8 -8 -7 -7 -7 -7 -7 -5 ------- Run | Scr Mat Min Mat Min Exi Min Mat Gar Mat Gar Fac Was Fac Sto Rec Fac Traps Triggered 11 | . . . 1 . . . . 4 . 1 3 . . . . 2 Indirectly . | . . . . . . . . . . . . . . . . . Trap Hack Attempts . | . . . . . . . . . . . . . . . . . Triggered . | . . . . . . . . . . . . . . . . . Disarmed 65 | . 10 . . . . . 13 . 15 . 11 . 10 6 . . Reprogrammed 47 | . . . . . . . . . 6 . 40 . 1 . . . Reused 2 | . . . . . . . . . 2 . . . . . . . Traps Extracted 11 | . . . . . . . . . . . 11 . . . . . Installed 5 | . . . . . . . . . . . 5 . . . . . Triggered 2 | . . . . . . . . . 2 . . . . . . . Machines | -11 -10 -10 -9 -9 -9 -8 -8 -8 -8 -8 -7 -7 -7 -7 -7 -5 ---------- Run | Scr Mat Min Mat Min Exi Min Mat Gar Mat Gar Fac Was Fac Sto Rec Fac Machines Disabled 32 | . . . . . . . . 5 . 6 5 . . 4 2 10 Max in Single Turn 2 | . . . . . . . . 1 . 1 . . . 1 . 2 Garrison Access 1 | . . . . . . . . . . . 1 . . . . . Garrison Relay 8 | . . . . . . . . 4 . 4 . . . . . . Machines Sabotaged . | . . . . . . . . . . . . . . . . . Garrisons Compromised . | . . . . . . . . . . . . . . . . . Overloaded Fab Kills . | . . . . . . . . . . . . . . . . . Fab Network Shutdowns 2 | . . . . . . . . . . . 1 . 1 . . . Hacking | -11 -10 -10 -9 -9 -9 -8 -8 -8 -8 -8 -7 -7 -7 -7 -7 -5 --------- Run | Scr Mat Min Mat Min Exi Min Mat Gar Mat Gar Fac Was Fac Sto Rec Fac Machines Accessed 137 | . 11 . 14 . 5 . 18 . 16 . 38 . 11 15 9 . Terminals 84 | . 8 . 11 . . . 12 . 12 . 19 . 6 11 5 . Fabricators 6 | . . . . . . . . . . . 4 . 2 . . . Repair Stations 7 | . 1 . 1 . . . 1 . . . 3 . . 1 . . Recycling Units 20 | . 2 . 2 . . . 2 . 2 . 5 . 1 2 4 . Scanalyzers 8 | . . . . . . . 2 . 1 . 4 . 1 . . . Garrison Access 7 | . . . . . . . 1 . 1 . 3 . 1 1 . . Total Hacks 866 | . 57 . 66 . 50 . 125 . 83 . 268 . 64 107 46 . Successful 804 | . 49 . 53 . 50 . 112 . 83 . 260 . 62 102 33 . Failed 62 | . 8 . 13 . . . 13 . . . 8 . 2 5 13 . Catastrophic 2 | . 1 . . . . . . . . . . . . . 1 . Database Lockouts . | . . . . . . . . . . . . . . . . . Manual 609 | . 47 . 50 . 1 . 113 . 51 . 179 . 33 97 38 . Terminals 626 | . 51 . 59 . . . 99 . 60 . 184 . 43 94 36 . Fabricators 38 | . . . . . . . . . . . 27 . 11 . . . Repair Stations 14 | . 1 . 1 . . . 1 . . . 9 . . 2 . . Recycling Units 61 | . 5 . 6 . . . 8 . 6 . 19 . 3 4 10 . Scanalyzers 40 | . . . . . . . 9 . 14 . 13 . 4 . . . Garrison Access 37 | . . . . . . . 8 . 3 . 16 . 3 7 . . Terminal Hacks 461 | . 29 . 21 . 50 . 58 . 43 . 145 . 30 66 19 . Record 49 | . . . . . 49 . . . . . . . . . . . Part Schematic 115 | . . . . . . . 11 . . . 58 . 8 36 2 . Robot Schematic 28 | . . . . . . . 2 . 11 . 13 . . . 2 . Robot Analysis 36 | . 7 . . . . . 12 . 2 . 12 . . . 3 . Prototype ID Bank 33 | . 4 . 2 . . . 6 . 2 . 11 . 4 3 1 . Open Door 3 | . . . . . . . . . . . . . . 3 . . Level Access Points 7 | . 1 . 1 . . . 1 . 1 . 1 . . 1 1 . Branch Access Points 11 | . 1 . 2 . . . 2 . 2 . 1 . 1 1 1 . Emergency Access Points 10 | . . . . . . . 1 . 1 . 6 . 2 . . . Machine Index 5 | . . . . . . . . . 1 . 2 . 1 1 . . Terminal Index 6 | . 1 . 1 . . . 1 . 1 . 1 . . . 1 . Fabricator Index 4 | . . . 1 . . . 2 . . . . . . . 1 . Repair Station Index 3 | . 1 . . . . . 1 . . . . . . . 1 . Recycling Unit Index 7 | . 3 . 1 . . . 1 . 1 . 1 . . . . . Scanalyzer Index 3 | . . . 1 . . . 1 . . . . . . . 1 . Garrison Index 2 | . . . . . . . 1 . . . . . . . 1 . Alert Level 2 | . 1 . . . . . 1 . . . . . . . . . Unreport Threat 27 | . . . 4 . . . 5 . 6 . 3 . 2 7 . . Locate Traps 11 | . 3 . . . . . . . 2 . 5 . 1 . . . Disarm Traps 18 | . 3 . . . . . 3 . 4 . 3 . 3 2 . . Reprogram Traps 15 | . . . . . . . . . 1 . 12 . 2 . . . Dispatch Records 2 | . . . . . . . . . . . 2 . . . . . Security Status 1 | . . . . . . . . . . . . . . 1 . . Extermination Status 1 | . . . . . . . . . . . . . . 1 . . Recall Investigation 4 | . . . . . . . 1 . 1 . . . . 1 1 . Recall Reinforcements 1 | . . . . . . . . . . . . . . 1 . . Recall Assault 1 | . . . . . . . . . . . . . . 1 . . Hauler Manifests 2 | . . . 1 . . . . . . . . . 1 . . . Registered Components 7 | . . . 1 . . . 1 . 1 . 2 . 1 1 . . Registered Prototypes 6 | . . . . . . . 1 . 1 . 2 . 1 1 . . Zone Layout 40 | . 4 . 6 . . . 4 . 5 . 10 . 3 5 3 . EX-Prototype ID Bank 1 | . . . . . 1 . . . . . . . . . . . Fabricator Hacks 28 | . . . . . . . . . . . 21 . 7 . . . Network Status 4 | . . . . . . . . . . . 3 . 1 . . . Load Schematic 8 | . . . . . . . . . . . 5 . 3 . . . Build 16 | . . . . . . . . . . . 13 . 3 . . . Repair Station Hacks 8 | . . . . . . . . . . . 8 . . . . . Scan Component 4 | . . . . . . . . . . . 4 . . . . . Repair 4 | . . . . . . . . . . . 4 . . . . . Recycling Unit Hacks 24 | . 1 . 2 . . . 2 . 2 . 12 . 1 . 4 . Process 5 | . . . . . . . . . . . 5 . . . . . Report Inventory 18 | . 1 . 2 . . . 2 . 2 . 6 . 1 . 4 . Retrieve Components 1 | . . . . . . . . . . . 1 . . . . . Scanalyzer 33 | . . . . . . . 7 . 13 . 9 . 4 . . . Insert Component 15 | . . . . . . . 3 . 6 . 4 . 2 . . . Analyze 18 | . . . . . . . 4 . 7 . 5 . 2 . . . Garrison Access Hacks 6 | . . . . . . . 2 . 1 . 2 . . 1 . . Unlock Access 3 | . . . . . . . 1 . 1 . . . . 1 . . Seal Access 1 | . . . . . . . . . . . 1 . . . . . Coupler Status 2 | . . . . . . . 1 . . . 1 . . . . . Unauthorized Hacks 244 | . 19 . 30 . . . 43 . 24 . 63 . 20 35 10 . Terminals 155 | . 14 . 25 . . . 28 . 17 . 32 . 11 24 4 . Track 38 | . 5 . 7 . . . 7 . 5 . 7 . 2 5 . . Assimilate 21 | . . . 5 . . . 3 . 2 . 3 . 2 6 . . Botnet 72 | . 8 . 10 . . . 11 . 8 . 18 . 6 8 3 . Disrupt 10 | . . . 1 . . . 5 . . . 1 . . 3 . . Operators 14 | . 1 . 2 . . . 2 . 2 . 3 . 1 2 1 . Fabricators 10 | . . . . . . . . . . . 6 . 4 . . . Report 2 | . . . . . . . . . . . 2 . . . . . Prioritize 4 | . . . . . . . . . . . 2 . 2 . . . Siphon 4 | . . . . . . . . . . . 2 . 2 . . . Repair Stations 5 | . 1 . 1 . . . 1 . . . 1 . . 1 . . Mechanics 5 | . 1 . 1 . . . 1 . . . 1 . . 1 . . Recycling Units 36 | . 4 . 4 . . . 6 . 4 . 6 . 2 4 6 . Monitor 9 | . 1 . 1 . . . 2 . 1 . 1 . 1 1 1 . Recyclers 10 | . 1 . 1 . . . 2 . 1 . 2 . 1 1 1 . Tunnel 17 | . 2 . 2 . . . 2 . 2 . 3 . . 2 4 . Scanalyzers 7 | . . . . . . . 2 . 1 . 4 . . . . . Extract 7 | . . . . . . . 2 . 1 . 4 . . . . . Garrison Access 31 | . . . . . . . 6 . 2 . 14 . 3 6 . . Broadcast 7 | . . . . . . . 1 . 1 . 3 . 1 1 . . Decoy 1 | . . . . . . . 1 . . . . . . . . . Redirect 1 | . . . . . . . 1 . . . . . . . . . Reprogram 12 | . . . . . . . 1 . . . 7 . 1 3 . . Intercept 4 | . . . . . . . 1 . . . 2 . . 1 . . Watchers 6 | . . . . . . . 1 . 1 . 2 . 1 1 . . Data Cores Recovered . | . . . . . . . . . . . . . . . . . Used . | . . . . . . . . . . . . . . . . . Hacking Detections 101 | . 8 . 12 . . . 16 . 15 . 29 . 6 10 5 . Full Trace Events 1 | . . . . . . . . . . . . . . . 1 . Feedback Events . | . . . . . . . . . . . . . . . . . Feedback Blocked . | . . . . . . . . . . . . . . . . . Robot Schematics Acquired 28 | . . . . . . . 2 . 11 . 13 . . . 2 . Robots Built 7 | . . . . . . . . . . . 5 . 2 . . . Matter 958 | . . . . . . . . . . . 630 . 328 . . . Time 191 | . . . . . . . . . . . 133 . 58 . . . Total Robot Build Rating 26 | . . . . . . . . . . . 20 . 6 . . . Part Schematics Acquired 148 | . . . . . . . 22 . 8 . 70 . 10 36 2 . Parts Built 5 | . . . . . . . . . . . 3 . 2 . . . Matter 464 | . . . . . . . . . . . 338 . 126 . . . Time 95 | . . . . . . . . . . . 74 . 21 . . . Total Part Build Rating 22 | . . . . . . . . . . . 14 . 8 . . . Parts Repaired 4 | . . . . . . . . . . . 4 . . . . . Time 94 | . . . . . . . . . . . 94 . . . . . Parts Recycled . | . . . . . . . . . . . . . . . . . Recycled Matter 912 | . . . . . . . . . . . 912 . . . . . Retrieved Matter . | . . . . . . . . . . . . . . . . . Retrieved Components 3 | . . . . . . . . . . . 3 . . . . . Parts Scanalyzed 15 | . . . . . . . 3 . 6 . 4 . 2 . . . Part Schematics Acquired 15 | . . . . . . . 3 . 6 . 4 . 2 . . . Parts Damaged 2 | . . . . . . . 1 . . . . . 1 . . . Bothacking | -11 -10 -10 -9 -9 -9 -8 -8 -8 -8 -8 -7 -7 -7 -7 -7 -5 ------------ Run | Scr Mat Min Mat Min Exi Min Mat Gar Mat Gar Fac Was Fac Sto Rec Fac Used RIF Installer 2 | . . . . . . . . 1 . 1 . . . . . . Patrol Navigation 1 | . . . . . . . . . . 1 . . . . . . Robots Hacked 12 | . . . . . . . . . . . 11 . 1 . . . Non-combat 10 | . . . . . . . . . . . 9 . 1 . . . Combat 2 | . . . . . . . . . . . 2 . . . . . Robot Hacks Applied 15 | . . . . . . . . . . . 14 . 1 . . . parse_system 4 | . . . . . . . . . . . 4 . . . . . no_distress 6 | . . . . . . . . . . . 6 . . . . . find_chute 2 | . . . . . . . . . . . 2 . . . . . find_recycling 1 | . . . . . . . . . . . 1 . . . . . formatsys_high 2 | . . . . . . . . . . . 1 . 1 . . . Relay Couplers Released 14 | . . . . . . . . 7 . 6 . . . 1 . . Machine Destruction 13 | . . . . . . . . 7 . 6 . . . . . . Programmers 1 | . . . . . . . . . . . . . . 1 . . Attached 1 | . . . . . . . . . . 1 . . . . . . Robots Rewired 2 | . . . . . . . . . . . . . . 2 . . Allies Hacked 2 | . . . . . . . . . . . 1 . . 1 . . Hacks Repelled . | . . . . . . . . . . . . . . . . . Allies | -11 -10 -10 -9 -9 -9 -8 -8 -8 -8 -8 -7 -7 -7 -7 -7 -5 -------- Run | Scr Mat Min Mat Min Exi Min Mat Gar Mat Gar Fac Was Fac Sto Rec Fac Total Allies 54 | . . 2 4 . . . 6 . 1 . 16 1 5 19 . . Largest Group 25 | . . 2 6 6 6 4 10 6 5 3 15 16 20 25 18 18 Highest-Rated Group 521 | . . 46 86 86 86 40 118 60 50 30 367 382 446 521 351 348 Highest-Rated Ally 54 | . . 31 31 31 31 10 16 10 10 10 38 38 38 54 37 37 Total Orders 75 | . . . 2 1 . . 12 2 10 8 33 . . 7 . . STAY 36 | . . . 1 1 . . 6 1 5 4 17 . . 1 . . FOLLOW 36 | . . . 1 . . . 6 1 5 4 16 . . 3 . . EXPLORE 3 | . . . . . . . . . . . . . . 3 . . Ally Attacks 346 | . . . 6 . . . 19 . . . 31 7 23 87 57 116 Total Damage 6131 | . . . 21 . . . 265 . . . 1572 71 483 1884 521 1314 Kills 63 | . . . . . . . 4 . . . 13 1 5 16 10 14 Allies Corrupted 1 | . . . . . . . . . . . . . . . . 1 Allies Melted . | . . . . . . . . . . . . . . . . . Intel | -11 -10 -10 -9 -9 -9 -8 -8 -8 -8 -8 -7 -7 -7 -7 -7 -5 ------- Run | Scr Mat Min Mat Min Exi Min Mat Gar Mat Gar Fac Was Fac Sto Rec Fac Robot Analysis Total 36 | . 7 . . . . . 12 . 2 . 12 . . . 3 . Derelict Logs Recovered 1 | . . . . 1 . . . . . . . . . . . . Drone Launches 16 | . . . . . . . . . . . . . . 16 . . Drone Recoveries 2 | . . . . . . . . . . . . . . 2 . . Exploration | -11 -10 -10 -9 -9 -9 -8 -8 -8 -8 -8 -7 -7 -7 -7 -7 -5 ------------- Run | Scr Mat Min Mat Min Exi Min Mat Gar Mat Gar Fac Was Fac Sto Rec Fac Turns Passed 11951 | 204 346 1015 581 307 655 271 808 642 926 715 3096 366 661 890 275 193 Spaces Moved 21414 | 43 638 1270 1099 674 1066 702 1458 986 1537 1077 6571 452 1646 1402 613 180 Core 351 | 43 149 . . . . . . . . . . . 1 . . 158 Treads . | . . . . . . . . . . . . . . . . . Legs . | . . . . . . . . . . . . . . . . . Wheels . | . . . . . . . . . . . . . . . . . Hover . | . . . . . . . . . . . . . . . . . Flight 21063 | . 489 1270 1099 674 1066 702 1458 986 1537 1077 6571 452 1645 1402 613 22 Fastest Speed 26 | 50 37 37 31 31 31 31 31 31 29 29 26 26 26 26 26 26 Average Speed 29 | 50 40 37 32 31 31 31 31 31 29 29 26 26 26 26 26 47 Slowest Speed 200 | 50 50 37 37 31 31 31 31 31 31 29 29 91 200 91 26 50 Overloaded Moves . | . . . . . . . . . . . . . . . . . Propulsion Burnouts . | . . . . . . . . . . . . . . . . . Robots Hopped 89 | . 1 13 4 2 . 7 5 1 15 . 24 . 2 14 1 . Cave-ins Triggered 1 | . . . . . . . . . . . 1 . . . . . Exploration Rate (%) 76 | 3 81 100 72 99 95 99 79 83 89 89 79 95 36 97 92 10 Regions Visited 16 Branch Regions 6 Pre-discovered Areas 18 | . 2 . 2 . 1 . 2 . 2 . 3 . . 2 4 . Known Exits Taken 12 | 1 1 1 1 1 1 1 1 . 1 . . . 1 1 1 . Unknown Exits Taken . | . . . . . . . . . . . . . . . . . Scrap Searched 2 | . . . . 1 . 1 . . . . . . . . . . Spaces Dug 115 | . 3 . 2 . . . 11 . 18 6 9 . . 7 . 59 Terrain Destroyed 264 | 4 4 7 6 . . 4 19 4 20 6 9 . . 16 21 144 Melee 51 | . . . . . . . 11 . 18 6 9 . . 7 . . Projectile 8 | . 3 . 2 . . . . . 2 . . . . 1 . . AOE 205 | 4 1 7 4 . . 4 8 4 . . . . . 8 21 144 Terrain Rammed . | . . . . . . . . . . . . . . . . . Walls Destroyed . | . . . . . . . . . . . . . . . . . Machines Disabled . | . . . . . . . . . . . . . . . . . Actions | -11 -10 -10 -9 -9 -9 -8 -8 -8 -8 -8 -7 -7 -7 -7 -7 -5 --------- Run | Scr Mat Min Mat Min Exi Min Mat Gar Mat Gar Fac Was Fac Sto Rec Fac Total 26309 | 218 698 1799 1289 762 1389 737 1768 1246 1868 1368 7845 692 1834 1811 706 279 Wait 3582 | 159 24 539 143 88 316 18 209 78 188 160 916 217 115 284 74 54 Move 21221 | 42 635 1243 1090 669 1065 687 1447 983 1506 1076 6523 451 1641 1373 610 180 Hop 89 | . 1 13 4 2 . 7 5 1 15 . 24 . 2 14 1 . Pick Up 166 | 5 7 1 1 . . 3 15 12 9 5 88 2 6 10 . 2 Fast Attach 39 | . . . 7 . 3 . 4 . 1 . 14 4 2 4 . . Attach 71 | 4 3 . . . 2 1 10 7 9 1 21 . 6 5 . 2 Detach 25 | . . . . . 1 . 2 . 8 . 11 . 2 1 . . Swap 57 | 1 3 . . . . . 9 7 5 . 12 6 6 8 . . Drop 194 | 1 3 . 4 . 2 4 16 10 10 4 94 5 9 13 . 19 Fire 409 | 6 22 2 28 3 . 12 18 30 50 64 62 3 27 42 20 20 Melee 209 | . . . . . . . 25 33 45 27 33 . 11 34 1 . Ram 2 | . . . . . . . . . . . . . . . . 2 Kick . | . . . . . . . . . . . . . . . . . Crush . | . . . . . . . . . . . . . . . . . Escape Stasis 92 | . . . . . . . . 72 . 18 2 . . . . . Rewire 2 | . . . . . . . . . . . 2 . . . . . Trap 5 | . . . . . . . . . . . 5 . . . . . Miscellaneous 146 | . . 1 12 . . 5 8 13 22 13 38 4 7 23 . . Route ------- -11/Scrapyard -10/Materials (discovered 4 exits: *Mat x3 / *Min) -10/Mines (discovered 2 exits: *Mat x2) -9/Materials (discovered 4 exits: *Mat x3 / *Min) -9/Mines (discovered 4 exits: *Mat x2 / *Exi / *Zio) -9/Exiles (discovered 2 exits: *Min x2) -8/Mines (discovered 2 exits: *Mat x2) -8/Materials (discovered 4 exits: *Fac x3 / Gar) -8/Garrison (discovered 3 exits: *Mat x3) -8/Materials (discovered 4 exits: *Fac x3 / Gar) -8/Garrison (discovered 3 exits: *Fac x3) -7/Factory (discovered 7 exits: *Fac x4 / *Sto / *Low x2) -7/Waste -7/Factory (discovered 3 exits: *Sto / *Low x2) -7/Storage (discovered 3 exits: *Fac / *Rec / Gar) -7/Recycling -5/Factory History --------- Turn | Location | Event 2 | -11/Scrapyard | Upgraded with Utility slot (x1) 2 | -11/Scrapyard | Upgraded with Weapon slot (x1) 8 | -11/Scrapyard | Identified exit to Materials 8 | -11/Scrapyard | Discovered exit to Materials (range 15) 205 | -11/Scrapyard | Entered Materials 331 | -10/Materials | Upgraded with Propulsion slot (x1) 337 | -10/Materials | Identified exit to Materials 337 | -10/Materials | Discovered exit to Materials (range 17) 337 | -10/Materials | Identified exit to Mines 535 | -10/Materials | Build established: Hacker-Scout 551 | -10/Materials | Entered Mines 553 | -10/Mines | Reached level 2 634 | -10/Mines | A weapon hastily lodged in a ceiling crevice suddenly fell to the ground 932 | -10/Mines | Discovered exit to Materials (range 16) 985 | -10/Mines | Discovered exit to Materials (range 13) 1566 | -10/Mines | Entered Materials 1566 | -9/Materials | Accompanied by 2 allies 1568 | -9/Materials | Reached level 3 1571 | -9/Materials | Led the pair of lost Derelicts to an unsafe place 1667 | -9/Materials | Reached level 4 1671 | -9/Materials | Upgraded with Power slot (x1) 1671 | -9/Materials | Upgraded with Propulsion slot (x2) 1671 | -9/Materials | Upgraded with Utility slot (x2) 1701 | -9/Materials | Identified exit to Materials 1701 | -9/Materials | Discovered exit to Materials (range 9) 1769 | -9/Materials | Discovered exit to Materials (range 10) 1812 | -9/Materials | Identified exit to Mines 1942 | -9/Materials | Discovered exit to Materials (range 17) 2041 | -9/Materials | Reached level 5 2147 | -9/Materials | Entered Mines 2147 | -9/Mines | Accompanied by 6 allies 2155 | -9/Mines | Deemed a non-threat by the Exiles lab entrance 2155 | -9/Mines | Identified exit to Exiles 2155 | -9/Mines | Discovered exit to Exiles (range 5) 2158 | -9/Mines | Met a Derelict bent on vengeance 2238 | -9/Mines | Learned Materials emergency access door positions 2278 | -9/Mines | A Derelict revealed a hidden shortcut to a safe place 2290 | -9/Mines | Identified exit to Zion 2314 | -9/Mines | Discovered exit to Materials (range 6) 2323 | -9/Mines | Discovered exit to Materials (range 17) 2454 | -9/Mines | Entered Exiles 2454 | -9/Exiles | Accompanied by 6 allies 2456 | -9/Exiles | Reached level 6 2460 | -9/Exiles | Identified exit to Mines 2460 | -9/Exiles | Discovered exit to Mines (range 15) 2474 | -9/Exiles | Met 8R-AWN 2484 | -9/Exiles | Led the pair of lost Derelicts to a safe place 2492 | -9/Exiles | Met EX-HEX 2508 | -9/Exiles | Met EX-DEC 2519 | -9/Exiles | Learned location of Zion (-7) 2529 | -9/Exiles | Met EX-BIN 2582 | -9/Exiles | Discovered exit to Mines (range 14) 2609 | -9/Exiles | Visited The Gauntlet 2655 | -9/Exiles | Aligned with FarCom system 2655 | -9/Exiles | Given EX-Vault access code 2662 | -9/Exiles | Opened EX-Vault 2671 | -9/Exiles | Warned to stay clear of 0b10 Research branches 2678 | -9/Exiles | Found Modified TNC 2926 | -9/Exiles | Upgraded with Utility slot (x1) 2926 | -9/Exiles | Upgraded with Weapon slot (x1) 3109 | -9/Exiles | Left Exiles lab with Modified TNC 3109 | -9/Exiles | Entered Mines 3109 | -8/Mines | Accompanied by 4 allies 3132 | -8/Mines | Discovered exit to Materials (range 7) 3167 | -8/Mines | Discovered exit to Materials (range 6) 3354 | -8/Mines | Reached level 7 3380 | -8/Mines | Entered Materials 3380 | -8/Materials | Accompanied by 4 allies 3382 | -8/Materials | Reached level 8 3382 | -8/Materials | Upgraded with Utility slot (x1) 3529 | -8/Materials | Identified exit to Factory 3529 | -8/Materials | Discovered exit to Factory (range 16) 3748 | -8/Materials | Identified exit to Garrison 3805 | -8/Materials | Reached level 9 4050 | -8/Materials | Reached level 10 4188 | -8/Materials | Entered Garrison 4188 | -8/Garrison | Accompanied by 6 allies 4223 | -8/Garrison | Reached level 11 4223 | -8/Garrison | Triggered checkpoint 4225 | -8/Garrison | Upgraded with Utility slot (x2) 4231 | -8/Garrison | Garrison Relay disabled 4337 | -8/Garrison | Destroyed 10 combat bots 4348 | -8/Garrison | Identified exit to Materials 4348 | -8/Garrison | Discovered exit to Materials (range 15) 4356 | -8/Garrison | Installed Relay Interface Framework 4404 | -8/Garrison | Triggered checkpoint 4419 | -8/Garrison | Garrison Relay disabled 4419 | -8/Garrison | Reached level 12 4459 | -8/Garrison | Build established: Wizard-Ninja 4499 | -8/Garrison | Garrison Relay disabled 4538 | -8/Garrison | Spotted B-75 Beast 4545 | -8/Garrison | Discovered exit to Materials (range 16) 4608 | -8/Garrison | Triggered checkpoint 4664 | -8/Garrison | Garrison Relay disabled 4686 | -8/Garrison | Discovered exit to Materials (range 19) 4702 | -8/Garrison | Triggered checkpoint 4708 | -8/Garrison | Triggered checkpoint 4830 | -8/Garrison | Entered Materials 4830 | -8/Materials | Accompanied by 5 allies 4964 | -8/Materials | Identified exit to Garrison 5078 | -8/Materials | Discovered exit to Factory (range 18) 5283 | -8/Materials | Reached level 13 5296 | -8/Materials | Discovered exit to Factory (range 15) 5526 | -8/Materials | Discovered exit to Factory (range 5) 5756 | -8/Materials | Entered Garrison 5756 | -8/Garrison | Accompanied by 3 allies 5837 | -8/Garrison | Triggered checkpoint 5857 | -8/Garrison | Garrison Relay disabled 5910 | -8/Garrison | Triggered checkpoint 5910 | -8/Garrison | Triggered checkpoint 5958 | -8/Garrison | Triggered checkpoint 5992 | -8/Garrison | Discovered exit to Factory (range 12) 6018 | -8/Garrison | Triggered checkpoint 6053 | -8/Garrison | Garrison Relay disabled 6115 | -8/Garrison | Discovered exit to Factory (range 17) 6143 | -8/Garrison | Triggered checkpoint 6166 | -8/Garrison | Garrison Relay disabled 6219 | -8/Garrison | Expanded RIF knowledge: Watcher Feeds 6219 | -8/Garrison | Reached level 14 6277 | -8/Garrison | Triggered checkpoint 6330 | -8/Garrison | Garrison Relay disabled 6358 | -8/Garrison | Triggered checkpoint 6390 | -8/Garrison | Discovered exit to Factory (range 3) 6471 | -8/Garrison | Entered Factory 6471 | -7/Factory | Accompanied by 3 allies 6584 | -7/Factory | Identified exit to Storage 6584 | -7/Factory | Identified exit to Lower Caves 6636 | -7/Factory | Repaired Imp. System Backup Module 6649 | -7/Factory | Identified exit to Factory 6735 | -7/Factory | Crushed by falling debris 6764 | -7/Factory | Reached level 15 6803 | -7/Factory | Repaired Imp. Maneuvering Thrusters 6988 | -7/Factory | Upgraded with Utility slot (x1) 7026 | -7/Factory | Found Rocket Array 7640 | -7/Factory | Repaired Transmission Jammer 7667 | -7/Factory | Repaired Lgt. Angular Momentum Engine 7690 | -7/Factory | Core integrity fell below 50% 7907 | -7/Factory | P-60 Hacker assimilated hostile B-48 Gladiator 8502 | -7/Factory | Fabricated Tesla Rifle (x1) 8541 | -7/Factory | Fabricated P-60 Hacker (x2) 8574 | -7/Factory | Fabricated P-60 Hacker (x2) 8595 | -7/Factory | Fabricated System Backup Module (x2) 8721 | -7/Factory | Reached level 16 8726 | -7/Factory | Upgraded with Weapon slot (x1) 9061 | -7/Factory | Fabricated I-36 Angel (x1) 9454 | -7/Factory | Local fabrication network quarantined 9567 | -7/Factory | Manually triggered Chute Trap 9567 | -7/Factory | Sucked down chute 9567 | -7/Factory | Entered Waste 9567 | -7/Waste | The area was eerily silent 9568 | -7/Waste | Met a frightened Derelict 9601 | -7/Waste | Found Damper Plating 9629 | -7/Waste | Identified exit to Factory 9629 | -7/Waste | Discovered exit to Factory (range 13) 9770 | -7/Waste | 6 allies followed down the chute 9810 | -7/Waste | 9 allies followed down the chute 9900 | -7/Waste | A Compactor rumbled back to life 9900 | -7/Waste | Spotted C-40 Crusher 9906 | -7/Waste | Allies destroyed C-40 Crusher 9933 | -7/Waste | Entered Factory 9933 | -7/Factory | Accompanied by 15 allies 10080 | -7/Factory | Fabricated System Backup Module (x2) 10340 | -7/Factory | Reached level 17 10363 | -7/Factory | Fabricated M-28 Smith? 10397 | -7/Factory | Fabricated M-28 Smith (x1) 10440 | -7/Factory | Local fabrication network quarantined 10524 | -7/Factory | P-60 Hacker assimilated allied Technician 4b 10594 | -7/Factory | Entered Storage 10594 | -7/Storage | Accompanied by 18 allies 10652 | -7/Storage | P-60 Hacker assimilated hostile G-47 Trooper 10669 | -7/Storage | Identified exit to Recycling 10778 | -7/Storage | Assisted by bots powering up and referring to "LRC-V3" 10952 | -7/Storage | Reached level 18 10983 | -7/Storage | Identified exit to Garrison 11059 | -7/Storage | Upgraded with Utility slot (x1) 11119 | -7/Storage | Build established: Commander-Ninja 11179 | -7/Storage | Used back door to open Recycling access 11450 | -7/Storage | Build established: Wizard-Ninja 11484 | -7/Storage | Entered Recycling 11484 | -7/Recycling | Accompanied by 18 allies 11519 | -7/Recycling | Spotter reported a threat 11530 | -7/Recycling | Spotter reported a threat 11540 | -7/Recycling | Spotter reported a threat 11543 | -7/Recycling | Spotter reported a threat 11553 | -7/Recycling | Spotter reported a threat 11557 | -7/Recycling | Spotter reported a threat 11565 | -7/Recycling | Spotter reported a threat 11573 | -7/Recycling | Spotter reported a threat 11586 | -7/Recycling | Identified exit to Factory 11595 | -7/Recycling | Spotter reported a threat 11624 | -7/Recycling | Spotter reported a threat 11626 | -7/Recycling | Spotter reported a threat 11640 | -7/Recycling | Spotter reported a threat 11680 | -7/Recycling | Spotter reported a threat 11680 | -7/Recycling | Spotter reported a threat 11680 | -7/Recycling | Spotter reported a threat 11680 | -7/Recycling | Spotter reported a threat 11759 | -7/Recycling | Entered Factory 11759 | -5/Factory | Accompanied by 18 allies 11761 | -5/Factory | Reached level 19 11793 | -5/Factory | Reached level 20 11819 | -5/Factory | Core integrity fell below 50% 11853 | -5/Factory | Core integrity fell below 20% 11952 | -5/Factory | Destroyed by H-66 Slayer with Gauss Rifle Last Messages --------------- 11945_ K-01 Serf collects debris. 11946_ U-05 Engineer lays Concrete. 11947_ >> Watcher Feeds: Established visual feed link with W-25 Informer. 11947_ U-05 Engineer lays Concrete. 11947_ Acquired Particle Gun. 11947_ U-05 Engineer lays Concrete. 11948_ U-05 Engineer builds a Wall. 11948_ K-01 Serf collects debris. 11948_ U-05 Engineer lays Concrete. 11948_ K-01 Serf collects debris. 11949_ >> Watcher Feeds: Feed link from W-25 Informer lost. 11949_ >> Watcher Feeds: Established visual feed link with W-25 Informer. 11949_ U-05 Engineer lays Concrete. 11949_ R-10 Processor collects Lgt. Nuclear Core. 11950_ K-01 Serf collects debris. 11950_ U-05 Engineer lays Concrete. 11950_ Trooper 4g destroyed. 11951_ U-05 Engineer lays Concrete. 11951_ K-01 Serf collects debris. 11952_ Slug penetrates Wall. Map ----- +----------------------------------------------------+ | ????????# # #???????????????? | | ????????# """" # #???????????????? | | ????????##### """" # ]#???????????????? | | ????????????# """" #############???????????????? | | ????????????# #???????????????????????????? | | ????????????# """" #???????????????????????????? | | ????######### """" #???????????????????????????? | | ???+ """" #???????????????????????????? | | ????######### #???????????????????????????? | | ????????????# """" #???????????????????????????? | | ????????????#w """" #???????????????????????????? | | ????????????# """" #???????????????????????????? | | ????????????# R#???????????????????????????? | | ????????????# """" #???????????????????????????? | | ????######??# """"=%#???????????????????????????? | | ???? #??# """"![#???????????????????????????? | | ????? #??# #############???????????????? | | ????? #??# """" # #???????????????? | | ?????# #??# """" # """ """ #???????????????? | | ?????# #??# """" k[= """ """ #???????????????? | | ?????# #??# #%!="""*""" #???????????????? | | ?????# #?##%= t #%%s%=%! #???????????????? | | ?????# #?# != # =s""" """ #???????????????? | | ?????# #?## # g%""" """ #???????????????? | | ?????# #### # %=""" """ #???????????????? | | ###### "" #*= @ #???????????????? | | " #%= """ """ #???????????????? | | ##### u R " ""w += """ """ #???????????????? | | ?## # #### u R# """ """ #???????????????? | | ?# # #???????????????? | | ?# % u # u h#################+#?????????? | | ?# u!] # u k ???????? | | ?# !] # % % ???????? | | ?# !] # % ???????? | | ?# # % % ???????? | | ?# # = % ???????? | | ?# # % k w ###+######+########?????????? | | ###+######## % #? ???????????????????????? | | %""" #? ""??????????????????????? | | """" #? """?????????????????????? | | #? """ ????????????????????? | | #? ???????????????????? | | #? ?????????????????????? | | ###+#############+#### *?????????????????????? | | #?? ??????????????????????? | | #?? ??????????????????????? | | "" #??#####??????????????????????? | | !! "" ???????????????????????????????? | | !! """???????????????????????????????? | | [ !! """???????????????????????????????? | +----------------------------------------------------+ Best States ------------- Heat Dissipation 55 Energy Generation 46 Energy Capacity 350 Matter Stores 300 Matter Capacity 300 Sight Range 23 Robot Scan Range 20 Terrain Scan Range 24 Terrain Scan Density 310 Jamming Range 8 Base Temperature (-) 100 Armor Coverage 150 Resistance: KI 35 Resistance: TH 35 Resistance: EX 60 Resistance: EM 50 Resistance: I 35 Resistance: S 35 Resistance: P 35 Phase Shifting 5 Evasion (%) 79 Salvage Targeting 2 Offensive Hacking 65 Defensive Hacking 40 Relay Coupler Types 78 Relay Coupler Value 1 Item Schematics ----------------- Prc. Beam Rifle | -8/Materials | Scanalyzed Hacking Suite | -8/Materials | Hacked System Shield | -8/Materials | Hacked Flight Unit | -8/Materials | Hacked Imp. Flight Unit | -8/Materials | Hacked Cld. Ion Engine | -8/Materials | Hacked Maneuvering Thrusters | -8/Materials | Hacked Reflective Plating | -8/Materials | Hacked Reactive Plating | -8/Materials | Hacked Insulated Plating | -8/Materials | Hacked Reclamation Unit | -8/Materials | Extracted Aerolev Unit | -8/Materials | Extracted Lrn. Tractor Beam | -8/Materials | Extracted EM Shotgun | -8/Materials | Extracted Med. Battery | -8/Materials | Extracted Lgt. Nuclear Core | -8/Materials | Extracted Maul | -8/Materials | Extracted Cesium-ion Thruster | -8/Materials | Scanalyzed Imp. Grenade Launcher | -8/Materials | Scanalyzed Mining Claw | -8/Materials | Hacked Imp. Datajack | -8/Materials | Hacked Flak Cannon | -8/Materials | Extracted Chainsword | -8/Materials | Scanalyzed Gatling Laser | -8/Materials | Scanalyzed Magnetic Acceleration Cannon | -8/Materials | Scanalyzed Phase Shifter | -8/Materials | Scanalyzed Imp. Maneuvering Thrusters | -8/Materials | Scanalyzed Adv. Terrain Scanner | -8/Materials | Scanalyzed Enh. Autogun | -8/Materials | Extracted Weight Redist. System | -8/Materials | Extracted Thermal Shield | -7/Factory | Hacked Transmission Jammer | -7/Factory | Scanalyzed Mic. Nuclear Core | -7/Factory | Scanalyzed Remote Datajack | -7/Factory | Hacked Imp. Trap Extractor | -7/Factory | Hacked Xenon Bombardment Thruster | -7/Factory | Hacked Lgt. Angular Momentum Engine | -7/Factory | Hacked Prc. Shock Rifle | -7/Factory | Hacked Imp. Cesium-ion Thruster | -7/Factory | Scanalyzed Imp. Heat Shielding | -7/Factory | Extracted Arc Projector | -7/Factory | Extracted Hvy. Particle Cannon | -7/Factory | Extracted Fission Core | -7/Factory | Hacked Drone Bay | -7/Factory | Hacked Neutrino Core | -7/Factory | Hacked Recalibrator | -7/Factory | Hacked Hvy. Phase Cannon | -7/Factory | Hacked Imp. Particle Charger | -7/Factory | Hacked Proton Cannon | -7/Factory | Hacked Arm. Huge Wheel | -7/Factory | Hacked Tesla Rifle | -7/Factory | Hacked Focal Shield | -7/Factory | Hacked Adv. ECM Suite | -7/Factory | Hacked Component Analysis Suite | -7/Factory | Scanalyzed Hrd. Heavy Armor Plating | -7/Factory | Hacked Imp. Salvage Targeting Computer | -7/Factory | Hacked Beam Cannon | -7/Factory | Hacked Beam Rifle | -7/Factory | Hacked Core Analyzer | -7/Factory | Hacked Cryofiber Web | -7/Factory | Hacked Cooling System | -7/Factory | Hacked Coolant Injector | -7/Factory | Hacked Com. Battery | -7/Factory | Hacked Carbon-fiber Leg | -7/Factory | Hacked Com. Matter Pod | -7/Factory | Hacked Com. Wheel | -7/Factory | Hacked Lightning Gun | -7/Factory | Hacked Propulsion Shielding | -7/Factory | Hacked Proton Missile Launcher | -7/Factory | Hacked Particle Cannon | -7/Factory | Hacked Particle Charger | -7/Factory | Hacked Particle Gun | -7/Factory | Hacked Plasma Cannon | -7/Factory | Hacked Plasma Cutter | -7/Factory | Hacked Power Maul | -7/Factory | Hacked Power Shielding | -7/Factory | Hacked Powered Armor | -7/Factory | Hacked Powered Hammer | -7/Factory | Hacked Pulse Rifle | -7/Factory | Hacked Katana | -7/Factory | Hacked Kinecellerator | -7/Factory | Hacked Hardlight Generator | -7/Factory | Hacked Hammer | -7/Factory | Hacked VTOL Module | -7/Factory | Hacked Imp. VTOL Module | -7/Factory | Hacked Lgt. EM Pulse Cannon | -7/Factory | Hacked Lgt. Armor Plating | -7/Factory | Hacked Lgt. Assault Rifle | -7/Factory | Hacked Lgt. Cannon | -7/Factory | Hacked Lgt. Deuterium Engine | -7/Factory | Hacked Lgt. Ion Engine | -7/Factory | Hacked Rnf. Deuterium Engine | -7/Factory | Hacked System Backup Module | -7/Factory | Hacked Force Field | -7/Factory | Hacked Energy Filter | -7/Factory | Extracted Imp. Light Armor Plating | -7/Factory | Extracted Hrd. Medium Armor Plating | -7/Factory | Extracted Imp. Signal Interpreter | -7/Factory | Extracted Imp. Heat Sink | -7/Factory | Extracted Impact Mace | -7/Factory | Extracted Mass Driver | -7/Factory | Scanalyzed Hvy. Rocket Launcher | -7/Factory | Scanalyzed Recoil Stabilizer | -7/Factory | Hacked Rnf. Ion Engine | -7/Factory | Hacked Hvy. Machine Gun | -7/Factory | Hacked Hpw. Shock Rifle | -7/Factory | Hacked Coil Gun | -7/Factory | Hacked Dynamic Insulation System | -7/Factory | Hacked Deuterium Engine | -7/Factory | Hacked Disposable Heat Sink | -7/Factory | Hacked Gravmag System | -7/Storage | Hacked Gauss Cannon | -7/Storage | Hacked Gauss Rifle | -7/Storage | Hacked Great Axe | -7/Storage | Hacked Great Maul | -7/Storage | Hacked Grenade Launcher | -7/Storage | Hacked Imp. Arc Projector | -7/Storage | Hacked Greatsword | -7/Storage | Hacked Field Recycling Unit | -7/Storage | Hacked Flail | -7/Storage | Hacked Flak Gun | -7/Storage | Hacked Force Booster | -7/Storage | Hacked Datajack | -7/Storage | Hacked Enh. Optical Array | -7/Storage | Hacked EMP Blaster | -7/Storage | Hacked EM Pulse Gun | -7/Storage | Hacked EM Pulse Cannon | -7/Storage | Hacked Electrolaser | -7/Storage | Hacked ECM Suite | -7/Storage | Hacked Rocket Launcher | -7/Storage | Hacked Imp. Medium Armor Plating | -7/Storage | Hacked Cld. VTOL Module | -7/Storage | Hacked Cld. Particle Cannon | -7/Storage | Hacked Weapon Cycler | -7/Storage | Hacked Weapon Shielding | -7/Storage | Hacked Target Analyzer | -7/Storage | Hacked Transport Network Coupler | -7/Storage | Hacked Trap Extractor | -7/Storage | Hacked Tractor Beam | -7/Storage | Hacked Targeting Computer | -7/Storage | Hacked Terrain Scan Processor | -7/Storage | Hacked Terrain Scanner | -7/Storage | Hacked Thermal Converter | -7/Storage | Hacked Thermal Generator | -7/Storage | Hacked Titanium Leg | -7/Storage | Hacked Force Rifle | -7/Storage | Hacked Cld. Deuterium Engine | -7/Recycling | Hacked Cld. Pulse Rifle | -7/Recycling | Hacked Robot Schematics ------------------ W-25 Informer | -8/Materials | Hacked O-24 Administrator | -8/Materials | Hacked H-55 Commando | -8/Materials | Hacked S-10 Pest | -8/Materials | Hacked O-16 Technician | -8/Materials | Hacked G-47 Trooper | -8/Materials | Hacked G-34 Mercenary | -8/Materials | Hacked B-36 Bruiser | -8/Materials | Hacked D-53 Grenadier | -8/Materials | Hacked I-25 Savior | -8/Materials | Hacked Y-45 Defender | -8/Materials | Hacked W-16 Scout | -8/Materials | Hacked L-31 Rogue | -8/Materials | Hacked P-60 Hacker | -7/Factory | Hacked M-28 Smith | -7/Factory | Hacked X-62 Marksman | -7/Factory | Hacked Y-54 Guardian | -7/Factory | Hacked L-41 Fighter | -7/Factory | Hacked S-27 Virus | -7/Factory | Hacked R-06 Scavenger | -7/Factory | Hacked T-07 Excavator | -7/Factory | Hacked M-14 Sweeper | -7/Factory | Hacked K-01 Serf | -7/Factory | Hacked I-36 Angel | -7/Factory | Hacked B-48 Gladiator | -7/Factory | Hacked A-02 Transporter | -7/Factory | Hacked G-50 Soldier | -7/Recycling | Hacked H-66 Slayer | -7/Recycling | Hacked Fabricated ------------ Tesla Rifle | x1 | -7/Factory P-60 Hacker | x2 | -7/Factory P-60 Hacker | x2 | -7/Factory System Backup Module | x2 | -7/Factory I-36 Angel | x1 | -7/Factory System Backup Module | x2 | -7/Factory M-28 Smith | x1 | -7/Factory M-28 Smith | x1 | -7/Factory Alien Tech Used ----------------- None Achievements -------------- Assimilation Complete Overkill Watch This! We Are Legion Wheee! \\IAMDERELICT Challenges ------------ None RPGLIKE | -11 -10 -10 -9 -9 -9 -8 -8 -8 -8 -8 -7 -7 -7 -7 -7 -5 --------- Run | Scr Mat Min Mat Min Exi Min Mat Gar Mat Gar Fac Was Fac Sto Rec Fac Levels Raised 19 | . . 1 3 . 1 1 3 2 1 1 2 . 1 1 . 2 XP Earned 35806 | 6000 1125 755 4754 850 350 1263 5065 2858 1485 1253 3704 71 680 1497 382 3714 XP Spent 31420 | 4770 1000 . 4670 . 2950 1410 1700 5930 . 1295 4720 . . 2975 . . Upgrades 54 | 16 6 . 9 . 3 4 1 5 . 2 6 . . 2 . . Power Slot 1 | . . . 1 . . . . . . . . . . . . . Propulsion Slot 3 | . 1 . 2 . . . . . . . . . . . . . Utility Slot 9 | 1 . . 2 . 1 . 1 2 . . 1 . . 1 . . Weapon Slot 3 | 1 . . . . 1 . . . . . 1 . . . . . Core Integrity 6 | . . . . . . 2 . . . 1 2 . . 1 . . Heat Dissipation 5 | 1 . . 3 . . . . 1 . . . . . . . . Energy Generation 3 | 1 . . . . . 2 . . . . . . . . . . Mass Support 2 | 2 . . . . . . . . . . . . . . . . Inventory Capacity 5 | 2 . . . . 1 . . 1 . 1 . . . . . . Sight Range 2 | . . . 1 . . . . . . . 1 . . . . . Sensor Range 5 | . 5 . . . . . . . . . . . . . . . Terrain Scan Density 3 | 3 . . . . . . . . . . . . . . . . Ranged Accuracy 2 | 1 . . . . . . . 1 . . . . . . . . Hack Attack % 3 | 2 . . . . . . . . . . 1 . . . . . Hack Defense % 2 | 2 . . . . . . . . . . . . . . . . Protomatter Created 2297 | . 14 8 116 . . 58 435 326 259 177 317 . 228 341 6 12 Integrity Restored 2560 | . . 24 243 . . 92 82 207 400 260 746 90 107 309 . . Core 2064 | . . 24 198 . . 74 64 137 331 233 638 . 85 280 . . Parts 496 | . . . 45 . . 18 18 70 69 27 108 90 22 29 . . Protomatter Decayed 2521 | . 14 . . . . . 496 247 171 87 308 70 118 698 37 275 Game ------ Seed FlightOverloadGuard Manual? 0 Play Time 08:46:01 Cumulative 97.1 hours Start 2021.05.25 @ 13:32:34 End 2021.05.25 @ 23:12:41 Sessions 3 Manual Loads 0 Difficulty Explorer Special Mode Winter2019/RPGLIKE Game No. 23 Rogue 12 Adventurer 0 Explorer 11 Win Type - Total 1 Types 0/0/1/0/0/0/0/0/0 Lore% 54 Gallery% 67 Achievement% 55 Wizard Run 0 Options --------- ASCII 0 Keyboard 0 Movement Mouse Keybinds 0 Fullscreen 2 Font 24/Proggy Map View 76x50 Tactical HUD 1 Map Filters NONE Filters NONE Steam 1 RUN: 32241a50-46cd-41b4-8eeb-922a1997092d